Cogmind - Beta 16 --- EXPLORER MODE // 2025.11.13 @ 10:17:20 Player: K.K.Y. Result: Destroyed by Lightning with EMDS Performance ------------- Evolutions (5) 2500 Regions Visited (10) 2000 Robots Destroyed (194) 970 Value Destroyed (8330) 8330 Prototype IDs (26) 520 Alien Tech Used (0) 0 Bonus (3759) 3759 TOTAL SCORE: 18079 Bonus ------- High Alert Combat Kills 24 Follower Combat Kills 1742 Network Hubs Disabled 400 Registered with UFD 300 Met Optimus in HQ 500 Built Enhanced Grunts 300 Met R17 at Cetus 500 Friendly Fire -7 Cogmind --------- Core Integrity 0/1000 Matter 18/300 Energy 100/100 System Corruption 25% Temperature Cool (0) Movement Core (700) Ox13 Location -5/Hub_04(d) Parts ------- > --- POWER (3) -------- (None) > --- PROPULSION (6) --- (None) > --- UTILITY (6) ------ High-capacity Storage Unit Improved Signal Interpreter > --- WEAPON (3) ------- (None) > --- INVENTORY (20) --- Medium Treads Medium Treads Medium Treads Medium Treads Armored Leg Advanced Heat Sink Layered Medium Armor Plating Graphene Brace Experimental Thermal Shield Relay Coupler [Grunt] (34) Relay Coupler [Demolisher] (27) Relay Coupler [Behemoth] (13) Heavy Laser Quantum Rifle Neutron Cannon Gauss Rifle Enhanced Gauss Cannon Enhanced Gauss Cannon Enhanced Gauss Cannon Advanced Datajack Peak State ------------ > --- POWER ------------ Neutrino Core Particle Reactor Quantum Reactor > --- PROPULSION ------- Flexi-carbon Leg Armored Leg Improved VSS Leg Thunder Leg Thunder Leg Enhanced Flexi-carbon Leg > --- UTILITY ---------- Advanced Heat Sink High-capacity Storage Unit Active Sensor Suite Improved System Shield > --- WEAPON ----------- Railgun Advanced KE Penetrator Hypervelocity Gauss Cannon > --- INVENTORY -------- Medium Treads Medium Treads Medium Treads Medium Treads Advanced Heat Sink Layered Medium Armor Plating Graphene Brace Experimental Thermal Shield Relay Coupler [Grunt] Relay Coupler [Demolisher] Relay Coupler [Behemoth] Heavy Laser Quantum Rifle Neutron Cannon Gauss Rifle Railgun Enhanced Gauss Cannon Enhanced Gauss Cannon Hypervelocity Gauss Cannon Advanced Datajack [Rating: 127] Favorites ----------- Power Fission Core Engine Light Ion Engine Power Core Fission Core Reactor Cold Fusion Reactor Propulsion Improved Medium Treads Treads Improved Medium Treads Leg Flexi-carbon Leg Wheel Compact Wheel Hover Unit Hover Unit Utility Active Sensor Suite Device Active Sensor Suite Storage Humpback Processor Advanced Terrain Scan Processor Hackware Improved System Shield Protection Gun Armor Weapon Cooled Particle Cannon Energy Gun Lightning Gun Energy Cannon Cooled Particle Cannon Ballistic Gun Light Assault Rifle Ballistic Cannon Advanced Assault Cannon Launcher Scatter Rocket Array Special Weapon Mining Laser Build | -11 -10 -10 -9 -9 -6 -5 -5 -5 -5 -5 ------- Run | Yrd Mat Sub Rec Scr Fac Fac Ext Cet Arc Hub Slots Evolved 11 | . 1 . . . 8 2 . . . . Power 2 | . . . . . 1 1 . . . . Propulsion 4 | . . . . . 3 1 . . . . Utility 4 | . 1 . . . 3 . . . . . Weapon 1 | . . . . . 1 . . . . . Parts Attached 128 | 8 6 2 3 6 30 24 14 19 3 13 Power 25 | 1 1 . . 1 7 2 3 6 1 3 Engine 10 | 1 1 . . 1 1 . 3 3 . . Core 11 | . . . . . 6 1 . 1 . 3 Reactor 4 | . . . . . . 1 . 2 1 . Propulsion 42 | 2 3 . 2 3 7 8 4 8 . 5 Treads 22 | . . . . 3 7 8 4 . . . Leg 15 | 2 . . . . . . . 8 . 5 Wheel 2 | . . . 2 . . . . . . . Hover 3 | . 3 . . . . . . . . . Flight . | . . . . . . . . . . . Utility 34 | 2 2 1 1 2 5 11 4 2 1 3 Device 19 | 1 2 1 . 1 3 4 4 1 1 1 Storage 6 | 1 . . 1 1 . 2 . 1 . . Processor 2 | . . . . . . 1 . . . 1 Hackware 2 | . . . . . . 1 . . . 1 Protection 5 | . . . . . 2 3 . . . . Artifact . | . . . . . . . . . . . Weapon 27 | 3 . 1 . . 11 3 3 3 1 2 Energy Gun 2 | 1 . . . . 1 . . . . . Energy Cannon 4 | . . . . . 3 . 1 . . . Ballistic Gun 10 | 2 . . . . 3 1 . 2 1 1 Ballistic Cannon 9 | . . . . . 3 2 2 1 . 1 Launcher 1 | . . . . . 1 . . . . . Special Weapon 1 | . . 1 . . . . . . . . Impact Weapon . | . . . . . . . . . . . Slashing Weapon . | . . . . . . . . . . . Piercing Weapon . | . . . . . . . . . . . Special Melee Weapon . | . . . . . . . . . . . Unidentified Prototypes 8 | . . 1 . . 3 1 1 1 . 1 Corrupted Parts 3 | . . . . . 3 . . . . . System Corruption 9 | . . . . . 9 . . . . . Parts Lost 46 | . . . 2 . 6 13 9 . . 16 Power 9 | . . . . . 1 3 1 . . 4 Propulsion 18 | . . . 2 . 1 3 7 . . 5 Utility 8 | . . . . . 1 4 . . . 3 Weapon 11 | . . . . . 3 3 1 . . 4 Highest Loss Streak 14 | . . . 1 . 2 4 3 . . 14 To Critical Strikes . | . . . . . . . . . . . Average Backups 18 | 1 4 9 9 15 28 20 12 15 19 19 Power 1 | . . . . . 3 1 . . . . Propulsion 1 | . 1 . . . 1 . . 1 2 4 Utility 9 | . 1 5 5 7 11 12 7 9 9 7 Weapon 6 | 1 . 3 4 5 10 5 3 4 6 7 Tool/Special . | . . . . . . . . . . . Unused Backups 76 | . 2 2 2 6 14 26 1 5 2 16 Power 5 | . 1 . . . 2 2 . . . . Propulsion 7 | . 1 1 . . 2 . . . . 3 Utility 32 | . . . 2 . 6 13 1 3 2 5 Weapon 28 | . . 1 . 6 4 8 . 2 . 7 Tool/Special 4 | . . . . . . 3 . . . 1 Average Slot Usage (%) 79 | . 93 99 93 84 75 75 60 74 88 82 Engine 6 | . 12 12 12 12 2 . 8 9 . . Core 4 | . . . . . 6 7 5 5 7 3 Treads 14 | . . . . 4 29 26 9 6 . . Leg 2 | . 8 . . . . . . 13 33 31 Wheel 3 | . . . 14 20 . . . . . . Hover 3 | . 14 25 4 . . . . . . . Device 13 | . 20 24 25 9 7 8 15 16 16 10 Storage 7 | . 12 12 12 12 5 4 5 5 5 5 Protection 1 | . . . . . 3 4 . . . . Energy Cannon 4 | . . . . . 7 11 5 . . . Ballistic Gun 6 | . 25 13 12 12 1 2 . 4 7 10 Ballistic Cannon 4 | . . . . . 7 5 8 11 8 4 Special Weapon 3 | . . 10 12 12 . . . . . . Peak Build Rating 127 | 7 10 13 14 19 106 124 107 111 118 127 Average Rating 64 | 4 8 12 13 14 83 105 81 93 114 118 On Entrance 52 | . 7 10 13 14 19 106 102 80 111 118 Avg Prop Armor Cover (%) 5 | . . . . . . 5 . . . 5 Naked Turns . | . . . . . . . . . . . Heaviest Build 275 | 17 17 17 46 247 263 275 98 119 130 127 Greatest Support 187 | 20 20 18 38 52 139 187 178 105 105 125 Greatest Overweight (x) 70 | . 1 . 5 7 70 1 29 6 1 21 Average Overweight (x) . | . . . 1 2 1 . 2 . 1 . Largest Inventory Capacity 35 | 10 10 10 20 35 35 35 15 20 20 20 Average Capacity 23 | 8 10 10 18 26 34 21 15 15 20 20 Most Carried 35 | 5 10 10 11 22 35 35 15 18 20 20 Average Carried 18 | 1 5 9 9 16 28 20 12 15 19 19 Final Capacity 35 | 10 10 10 20 35 35 15 15 20 20 20 Final Carried 35 | . 9 10 10 18 35 15 15 18 20 20 Class Distribution -------------------- 33% | Hauler-Skirmisher 19% | Scavenger-Skirmisher 18% | Hacker-Mutant 16% | Commander-Mutant 4% | Hacker-Skirmisher 4% | Scavenger-Tank Dominant Class ---------------- Hacker-Mutant | -10/Materials Hacker-Mutant | -10/Subcaves Hacker-Mutant | -9/Recycling Commander-Mutant | -9/Scraptown Hauler-Skirmisher | -6/Factory Hauler-Skirmisher | -5/Factory Scavenger-Skirmisher | -5/Extension Scavenger-Skirmisher | -5/Cetus Scavenger-Skirmisher | -5/Archives Scavenger-Skirmisher | -5/Hub_04(d) Resources | -11 -10 -10 -9 -9 -6 -5 -5 -5 -5 -5 ----------- Run | Yrd Mat Sub Rec Scr Fac Fac Ext Cet Arc Hub Matter Collected 4885 | 48 404 117 46 20 982 1273 705 703 98 489 Remotely . | . . . . . . . . . . . Salvage Created 8876 | . 357 120 475 . 2047 3925 488 322 166 976 Parts 407 | . 25 6 12 . 109 172 21 13 7 42 Haulers Intercepted 7 | . 2 . . . 3 2 . . . . Recyclers Shooed 12 | . . . 1 . 1 9 . . . 1 Parts Field Recycled . | . . . . . . . . . . . Retrieved Matter . | . . . . . . . . . . . Parts Self-Destructed . | . . . . . . . . . . . Prevented . | . . . . . . . . . . . Parts Restored . | . . . . . . . . . . . Kills | -11 -10 -10 -9 -9 -6 -5 -5 -5 -5 -5 ------- Run | Yrd Mat Sub Rec Scr Fac Fac Ext Cet Arc Hub Combat Hostiles Destroyed 132 | . 6 1 3 . 38 51 12 5 2 14 Guns 25 | . 6 1 . . 2 3 . . . 13 Cannons 100 | . . . 3 . 35 42 12 5 2 1 AOE 1 | . . . . . 1 . . . . . Classes Destroyed 16 | . 5 2 1 . 3 4 . 1 . . Worker 12 | . 1 . . . 2 4 2 . . 3 Builder 11 | . . . . . . 7 3 . . 1 Hauler 7 | . 2 . . . 3 2 . . . . Recycler 13 | . . . 7 . 1 5 . . . . Carrier 1 | . . . . . . . . 1 . . Operator 2 | . . . . . 1 . . . 1 . Watcher 16 | . 2 . . . 3 3 2 2 . 4 Swarmer 16 | . 1 . . . 5 7 3 . . . Grunt 50 | . 5 . . . 10 21 3 2 . 9 Sentry 23 | . . 1 3 . 6 4 4 . 2 3 Specialist 2 | . . . . . . 2 . . . . Hunter 9 | . . . . . 5 4 . . . . Programmer 24 | . . . . . 12 10 . . . 2 Heavy 2 | . . . . . . 2 . . . . Behemoth 3 | . . . . . . 1 2 . . . Cetus Guard 3 | . . . . . . . . 3 . . Cobbler 1 | . . 1 . . . . . . . . Best Kill Streak 14 | . 6 1 4 . 6 14 5 4 3 4 Combat Bots Only 6 | . 3 1 2 . 5 6 4 3 2 4 Max Kills in Single Turn 2 | . 1 1 1 . 2 2 1 1 1 2 Gunslinging . | . . . . . . . . . . . Exploded 1 | . . . . . 1 . . . . . Melee . | . . . . . . . . . . . Uniques/NPCs Destroyed . | . . . . . . . . . . . Combat | -11 -10 -10 -9 -9 -6 -5 -5 -5 -5 -5 -------- Run | Yrd Mat Sub Rec Scr Fac Fac Ext Cet Arc Hub Hostile Shots Fired 1106 | . 42 4 15 . 231 402 182 75 . 155 Missed 318 | . 11 1 3 . 87 114 53 20 . 29 Hits 788 | . 31 3 12 . 144 288 129 55 . 126 Projectile 788 | . 31 3 12 . 144 288 129 55 . 126 Critical Strikes 46 | . 2 1 . . 7 8 9 5 . 14 Actively Blocked 14 | . . . . . . . 9 5 . . Part Disruptions 7 | . . . . . . 5 . . . 2 Damage Taken 10943 | . 228 71 115 . 1316 4027 1934 698 . 2554 Core 1256 | . 52 20 12 . 146 251 161 160 . 454 Absorbed by Shields 301 | . . . . . 21 . 17 263 . . Redirected to Shielding 12 | . . . . . 12 . . . . . Ignored by Resistances 6505 | . 150 16 64 . 823 2351 1152 508 . 1441 Core Remaining (%) 82 | 100 . . . 66 82 . . . . . Volleys Fired 490 | . 28 51 24 1 80 180 56 26 5 39 Largest 5 | . 2 2 2 2 5 5 3 3 3 3 Hottest 221 | . 40 120 120 120 221 221 188 188 133 121 Shots Fired 1192 | . 56 98 43 2 236 440 123 69 15 110 Gun 343 | . 56 63 24 1 28 72 . 19 6 74 Cannon 794 | . . . . . 208 368 123 50 9 36 Launcher . | . . . . . . . . . . . Special 55 | . . 35 19 1 . . . . . . Kinetic 657 | . 56 63 24 1 119 139 65 65 15 110 Thermal 522 | . . 35 19 1 104 301 58 4 . . Explosive . | . . . . . . . . . . . Electromagnetic 13 | . . . . . 13 . . . . . Robot Hit Streak 39 | . 16 27 36 . 36 39 24 19 11 18 Robot Miss Streak 6 | . 2 . 1 . 2 6 2 3 1 6 Penetration Max 1 | . . . . . 1 1 1 1 1 1 Secondary Targets 3 | . 3 . . . . . . . . . Max Gunslinging Chain 1 | . 1 . . . . . . . . . Shots Hit Robots 835 | . 43 24 40 . 170 330 97 54 13 64 Core Hits 368 | . 20 13 21 . 79 129 33 19 9 45 Critical Kills 21 | . . . . . . 7 . 5 2 7 Critical Parts Destroyed 24 | . . . . . . 4 1 10 . 9 Critical Strikes 67 | . . . . . 4 12 6 19 7 19 Meltdown 4 | . . . . . . 4 . . . . Destroy 48 | . . . . . . 8 1 17 6 16 Blast 15 | . . . . . 4 . 5 2 1 3 Melee Attacks . | . . . . . . . . . . . Impact . | . . . . . . . . . . . Slashing . | . . . . . . . . . . . Piercing . | . . . . . . . . . . . Sneak Attacks . | . . . . . . . . . . . Combat Hostiles . | . . . . . . . . . . . Follow-up Attacks . | . . . . . . . . . . . Damage Inflicted 23939 | . 468 325 618 . 5060 9195 3700 1529 462 2582 Guns 4269 | . 468 133 189 . 387 1053 . 361 188 1490 Cannons 18102 | . . . . . 4546 8094 3576 1168 274 444 Explosions 899 | . . . . . 127 . 124 . . 648 Melee . | . . . . . . . . . . . Ramming 69 | . . . 21 . . 48 . . . . Kinetic 10571 | . 468 133 189 . 2386 1939 1676 1384 462 1934 Thermal 12457 | . . 192 408 . 2520 7208 1984 145 . . Explosive . | . . . . . . . . . . . Electromagnetic 842 | . . . . . 154 . 40 . . 648 Impact . | . . . . . . . . . . . Slashing . | . . . . . . . . . . . Piercing . | . . . . . . . . . . . Highest Corruption 25 | . . . . . 9 8 8 3 3 25 Average Corruption 3 | . . . . . 2 5 3 3 3 4 Corruption Purged 14 | . . . . . 9 . 5 . . . Corruption Blocked . | . . . . . . . . . . . Effects 211 | . . . . . 38 66 58 18 8 23 Message Errors 52 | . . . . . 10 15 19 4 . 4 Matter Fused 56 | . . . . . 8 15 16 9 4 4 Heat Flow Errors 19 | . . . . . 4 5 6 1 1 2 Energy Discharges 21 | . . . . . 6 5 5 . 2 3 Parts Rejected 2 | . . . . . . 1 1 . . . Parts Fused 7 | . . . . . 2 2 1 1 . 1 Data Loss (minor) 22 | . . . . . 3 10 3 2 1 3 Data Loss (major) 11 | . . . . . 1 4 5 . . 1 Misfires 5 | . . . . . 1 3 1 . . . Alerts 5 | . . . . . 2 1 . . . 2 Misdirections 1 | . . . . . . . . . . 1 Weapon Failures 10 | . . . . . 1 5 1 1 . 2 Overload Shots 1 | . . . . . . . 1 . . . Overflow Damage 371 | . . 16 . . 13 223 71 . . 48 Projectiles 259 | . . 16 . . 13 202 22 . . 6 Explosions 91 | . . . . . . . 49 . . 42 Melee 21 | . . . . . . 21 . . . . Knockbacks 35 | . . . 1 . 13 9 2 2 2 6 Impact 1 | . . . 1 . . . . . . . Kinetic 33 | . . . . . 13 8 2 2 2 6 Secondary 1 | . . . . . . 1 . . . . Self-Inflicted Damage 165 | . . . 10 . 20 . . . . 135 Shots 3 | . . . . . 1 . . . . 2 Rammed 5 | . . . 2 . . 3 . . . . Targets Rammed 7 | . . . 2 . . 5 . . . . Kicked . | . . . . . . . . . . . Crushed 2 | . . . . . . 2 . . . . Highest Temperature 588 | . 48 . 149 40 507 503 484 588 222 498 Average Temperature 106 | . 18 . 40 24 82 122 114 159 56 153 Received Heat Transfer 2673 | . 192 9 45 . 357 945 554 85 . 486 Effects 39 | . . . . . 5 9 7 9 . 9 Shutdowns 17 | . . . . . 3 2 3 3 . 6 Energy Bleed 3 | . . . . . . . 1 . . 2 Interference 12 | . . . . . 1 6 3 2 . . Matter Decay 1 | . . . . . . 1 . . . . Damage (minor) 3 | . . . . . 1 . . 1 . 1 Damage (major) 2 | . . . . . . . . 2 . . Damage (core) 1 | . . . . . . . . 1 . . Siege Activations . | . . . . . . . . . . . Martial Activations . | . . . . . . . . . . . Shielding Activations . | . . . . . . . . . . . Robots Disrupted 1 | . . . . . . . 1 . . . Combat Hostiles 1 | . . . . . . . 1 . . . Robots Corrupted 2 | . . . . . . 1 . . . 1 Combat Hostiles 1 | . . . . . . 1 . . . . Parts Fried . | . . . . . . . . . . . Impact Corruptions 1 | . . . . . . 1 . . . . Robots Melted 6 | . . . . . . 6 . . . . Combat Hostiles 5 | . . . . . . 5 . . . . Parts Melted 32 | . . . 2 . 6 24 . . . . Heat Transferred 15030 | . . 400 850 . 3351 9885 544 . . . Parts Sabotaged . | . . . . . . . . . . . Parts Stolen . | . . . . . . . . . . . Parts Stripped . | . . . . . . . . . . . Power Chain Reactions 2 | . . . . . 1 . 1 . . . Alert | -11 -10 -10 -9 -9 -6 -5 -5 -5 -5 -5 ------- Run | Yrd Mat Sub Rec Scr Fac Fac Ext Cet Arc Hub Maximum Alert Level 2 | . . . . . 1 1 . 1 . 2 Low Security (%) 95 | 100 100 . 100 . 99 95 100 74 100 57 Level 1 3 | . . . . . . 4 . 25 . 29 Level 2 . | . . . . . . . . . . 13 Level 3 . | . . . . . . . . . . . Level 4 . | . . . . . . . . . . . Level 5 . | . . . . . . . . . . . High Security . | . . . . . . . . . . . Max Security . | . . . . . . . . . . . Peak Influence 623 | . 50 . 46 . 225 248 94 369 186 623 Initial 90 | . . . . . . . . . 90 . Average 37 | . 11 . 2 . 14 70 5 110 93 190 Influence Increases 6613 | . 188 94 170 . 1529 1817 474 789 126 1426 Destroy 0b10 Robot/C 3440 | . 120 60 120 . 860 1020 300 420 80 460 Destroy 0b10 Robot/NC 310 | . 25 . 35 . 50 105 35 10 5 45 Destroy Leader 812 | . 28 . . . 312 250 64 60 . 98 Allied During Kill 262 | . . 4 14 . 21 . 3 125 25 70 Successful Hack 63 | . . . . . 48 5 . . . 10 Disable Machine 120 | . . . . . 12 12 20 4 8 64 Destroy Structure 681 | . . . 1 . 26 50 52 70 8 474 Partial Spotted 15 | . . . . . . 15 . . . . Lose Combat Pursuer 210 | . 15 30 . . . 60 . . . 105 Active Sensor Use 700 | . . . . . 200 300 . 100 . 100 Influence Decreases 6035 | . 188 94 170 . 1529 1817 474 465 450 848 Entered New Map 234 | . . . . . . . . . 234 . Time Decay 5231 | . 188 79 170 . 1429 1667 439 445 216 598 Lost Part 365 | . . . . . 40 130 35 . . 160 Lost Ally 195 | . . 15 . . 60 20 . 20 . 80 Purge Threat 10 | . . . . . . . . . . 10 Squads Dispatched 48 | . . . . . 20 14 2 3 . 9 Investigation 15 | . . . . . 4 4 . 3 . 4 Extermination 17 | . . . . . 11 5 . . . 1 Reinforcement 14 | . . . . . 4 5 2 . . 3 Assault 1 | . . . . . . . . . . 1 Garrison 1 | . . . . . 1 . . . . . Intercept . | . . . . . . . . . . . Searches Triggered . | . . . . . . . . . . . Construction Impeded 2 | . . . . . . . 1 . . 1 Haulers Reinforced 2 | . . . . . 2 . . . . . Active Scanning Responses 7 | . . . . . 2 3 . 1 . 1 Cargo Convoy Interrupts 1 | . . . . . . 1 . . . . Stealth | -11 -10 -10 -9 -9 -6 -5 -5 -5 -5 -5 --------- Run | Yrd Mat Sub Rec Scr Fac Fac Ext Cet Arc Hub Distress Signals 11 | . . . . . 1 5 3 2 . . Communications Jammed . | . . . . . . . . . . . Distress Signals . | . . . . . . . . . . . Times Spotted 239 | . 10 9 5 . 48 83 20 20 4 40 Peak Tracking Total 10 | . 4 2 1 . 5 7 6 5 2 10 Tactical Retreats 9 | . 1 1 . . . 3 . . . 4 Traps | -11 -10 -10 -9 -9 -6 -5 -5 -5 -5 -5 ------- Run | Yrd Mat Sub Rec Scr Fac Fac Ext Cet Arc Hub Traps Triggered 7 | . 2 1 . . 2 . 2 . . . Indirectly . | . . . . . . . . . . . Trap Hack Attempts . | . . . . . . . . . . . Triggered . | . . . . . . . . . . . Disarmed . | . . . . . . . . . . . Reprogrammed . | . . . . . . . . . . . Reused . | . . . . . . . . . . . Traps Extracted . | . . . . . . . . . . . Installed . | . . . . . . . . . . . Triggered . | . . . . . . . . . . . Machines | -11 -10 -10 -9 -9 -6 -5 -5 -5 -5 -5 ---------- Run | Yrd Mat Sub Rec Scr Fac Fac Ext Cet Arc Hub Machines Disabled 33 | . . 2 . . 3 3 6 1 2 16 Max in Single Turn 13 | . . 1 . . 2 1 3 1 1 13 Garrison Access 4 | . . . . . 2 1 . . . 1 Network Hub 2 | . . . . . . . . . . 2 Energy Cycler 3 | . . . . . . . 3 . . . Machines Repaired . | . . . . . . . . . . . Machines Dismantled . | . . . . . . . . . . . Machines Sabotaged . | . . . . . . . . . . . Overloaded Fab Kills . | . . . . . . . . . . . Hacking | -11 -10 -10 -9 -9 -6 -5 -5 -5 -5 -5 --------- Run | Yrd Mat Sub Rec Scr Fac Fac Ext Cet Arc Hub Machines Accessed 37 | . . 2 3 10 10 4 . 2 1 5 Terminals 13 | . . . . . 4 3 . 2 . 4 Fabricators 2 | . . . . . 2 . . . . . Repair Stations . | . . . . . . . . . . . Recycling Units 1 | . . . 1 . . . . . . . Scanalyzers 2 | . . . . . 2 . . . . . Garrison Access 4 | . . . . . 2 1 . . . 1 Total Hacks 194 | . . 14 28 78 24 6 . 6 25 13 Successful 170 | . . 14 25 78 16 3 . 4 25 5 Failed 24 | . . . 3 . 8 3 . 2 . 8 Catastrophic 5 | . . . . . 2 . . 1 . 2 Database Lockouts . | . . . . . . . . . . . Manual 11 | . . 1 . . 4 3 . 1 1 1 Terminals 30 | . . . . . 7 5 . 6 . 12 Fabricators 5 | . . . . . 5 . . . . . Repair Stations . | . . . . . . . . . . . Recycling Units 4 | . . . 4 . . . . . . . Scanalyzers 9 | . . . . . 9 . . . . . Garrison Access 5 | . . . . . 3 1 . . . 1 Terminal Hacks 154 | . . 14 24 78 3 2 . 4 25 4 Record 139 | . . 13 24 72 . . . 4 25 1 Robot Schematic 1 | . . . . . 1 . . . . . Robot Analysis 6 | . . . . 6 . . . . . . Open Door 1 | . . . . . . 1 . . . . Branch Access Points 1 | . . . . . . 1 . . . . Unreport Threat 1 | . . . . . . . . . . 1 Zone Layout 4 | . . . . . 2 . . . . 2 Proto ID Catalog 1 | . . 1 . . . . . . . . Fabricator Hacks 3 | . . . . . 3 . . . . . Network Status 1 | . . . . . 1 . . . . . Load Schematic 1 | . . . . . 1 . . . . . Build 1 | . . . . . 1 . . . . . Repair Station Hacks . | . . . . . . . . . . . Recycling Unit Hacks 1 | . . . 1 . . . . . . . Retrieve Components 1 | . . . 1 . . . . . . . Scanalyzer 8 | . . . . . 8 . . . . . Retrieve Study 8 | . . . . . 8 . . . . . Garrison Access Hacks 4 | . . . . . 2 1 . . . 1 Seal Access 4 | . . . . . 2 1 . . . 1 Unauthorized Hacks . | . . . . . . . . . . . Terminals . | . . . . . . . . . . . Fabricators . | . . . . . . . . . . . Repair Stations . | . . . . . . . . . . . Recycling Units . | . . . . . . . . . . . Scanalyzers . | . . . . . . . . . . . Garrison Access . | . . . . . . . . . . . Data Cores Recovered . | . . . . . . . . . . . Used . | . . . . . . . . . . . Hacking Detections 17 | . . . 1 . 9 1 . 2 . 4 Full Trace Events 8 | . . . . . 2 1 . 2 . 3 Feedback Events 2 | . . . . . 1 . . . . 1 Corruption 1 | . . . . . 1 . . . . . Hackware Fried 1 | . . . . . . . . . . 1 Feedback Blocked 1 | . . . . . . . . . . 1 Robot Schematics Acquired 1 | . . . . . 1 . . . . . Robots Built 4 | . . . . . 4 . . . . . Authchips . | . . . . . . . . . . . Time 134 | . . . . . 134 . . . . . Total Robot Build Rating 16 | . . . . . 16 . . . . . Part Schematics Acquired . | . . . . . . . . . . . Parts Built . | . . . . . . . . . . . Authchips . | . . . . . . . . . . . Time . | . . . . . . . . . . . Total Part Build Rating . | . . . . . . . . . . . Part Studies Acquired 8 | . . . . . 8 . . . . . Parts Repaired . | . . . . . . . . . . . Time . | . . . . . . . . . . . Parts Recycled . | . . . . . . . . . . . Recycled Matter . | . . . . . . . . . . . Retrieved Matter . | . . . . . . . . . . . Retrieved Components 1 | . . . 1 . . . . . . . Parts Scanalyzed . | . . . . . . . . . . . Part Schematics Acquired . | . . . . . . . . . . . Parts Damaged . | . . . . . . . . . . . Bothacking | -11 -10 -10 -9 -9 -6 -5 -5 -5 -5 -5 ------------ Run | Yrd Mat Sub Rec Scr Fac Fac Ext Cet Arc Hub Used RIF Installer . | . . . . . . . . . . . Robots Hacked . | . . . . . . . . . . . Non-combat . | . . . . . . . . . . . Combat . | . . . . . . . . . . . Robot Hacks Applied . | . . . . . . . . . . . Relay Couplers Released 3 | . . . . . 3 . . . . . Programmers 3 | . . . . . 3 . . . . . Fabnet Peak Effective % . | . . . . . . . . . . . Robots Rewired 15 | . . . 15 . . . . . . . Allies Hacked . | . . . . . . . . . . . Hacks Repelled . | . . . . . . . . . . . Allies | -11 -10 -10 -9 -9 -6 -5 -5 -5 -5 -5 -------- Run | Yrd Mat Sub Rec Scr Fac Fac Ext Cet Arc Hub Total Allies 36 | . . 9 15 . 4 . 3 5 . . Largest Group 22 | . . 9 22 22 20 1 3 7 5 4 Highest-Rated Group 642 | . . 171 328 328 301 12 211 642 503 384 Highest-Rated Ally 152 | . . 19 27 27 27 12 152 152 119 96 Total Orders . | . . . . . . . . . . . Ally Attacks 224 | . . 21 14 1 40 3 13 76 17 39 Total Damage 6335 | . . 342 262 22 455 47 285 2931 514 1477 Kills 43 | . . 4 3 . 6 . 3 15 2 10 Allies Corrupted . | . . . . . . . . . . . Allies Melted . | . . . . . . . . . . . Intel | -11 -10 -10 -9 -9 -6 -5 -5 -5 -5 -5 ------- Run | Yrd Mat Sub Rec Scr Fac Fac Ext Cet Arc Hub Active Infowar (turns) 14504 | 49 502 136 . 16 6253 2444 3047 835 305 917 A.S.S. 13801 | . . . . . 6253 2444 3047 835 305 917 Terrain 915 | 49 502 136 . . . 228 . . . . Structural 164 | . . . . 16 . . 54 94 . . Robot Analysis Total 6 | . . . . 6 . . . . . . Derelict Logs Recovered 5 | . . 2 . 3 . . . . . . Drone Launches . | . . . . . . . . . . . Drone Recoveries . | . . . . . . . . . . . Exploration | -11 -10 -10 -9 -9 -6 -5 -5 -5 -5 -5 ------------- Run | Yrd Mat Sub Rec Scr Fac Fac Ext Cet Arc Hub Turns Passed 22764 | 70 502 2630 1407 3193 6860 2989 3047 835 305 926 Spaces Moved 11315 | 43 510 2958 682 2055 2047 1156 910 329 142 483 Core 88 | 19 . . 54 . 1 . 13 . . 1 Treads 4343 | . . . . 121 2046 1156 897 123 . . Legs 958 | 24 104 . . . . . . 206 142 482 Wheels 2305 | . . . 371 1934 . . . . . . Hover 3621 | . 406 2958 257 . . . . . . . Flight . | . . . . . . . . . . . Fastest Speed 50 | 50 56 56 56 115 200 162 163 120 190 115 Average Speed 148 | 89 75 56 133 146 235 182 267 163 190 136 Slowest Speed 3550 | 120 120 56 300 480 3550 222 1500 540 190 1100 Overloaded Moves . | . . . . . . . . . . . Propulsion Burnouts . | . . . . . . . . . . . Robots Hopped . | . . . . . . . . . . . Potential Cave-ins . | . . . . . . . . . . . Cave-ins Triggered . | . . . . . . . . . . . Exploration Rate (%) 66 | 5 87 96 97 91 47 36 74 68 83 51 Regions Visited 10 Branch Regions 7 Pre-discovered Areas 4 | . . 2 . 2 . . . . . . Known Exits Taken 10 | 1 1 1 1 1 1 1 1 1 1 . Unknown Exits Taken . | . . . . . . . . . . . Scrap Searched 21 | . . 14 . 7 . . . . . . Spaces Dug . | . . . . . . . . . . . Terrain Destroyed 428 | . . . 1 . 23 26 28 6 3 341 Melee . | . . . . . . . . . . . Projectile 97 | . . . 1 . 20 26 12 6 3 29 AOE 331 | . . . . . 3 . 16 . . 312 Terrain Rammed . | . . . . . . . . . . . Walls Destroyed . | . . . . . . . . . . . Machines Disabled . | . . . . . . . . . . . Actions | -11 -10 -10 -9 -9 -6 -5 -5 -5 -5 -5 --------- Run | Yrd Mat Sub Rec Scr Fac Fac Ext Cet Arc Hub Total 16203 | 75 581 3773 1102 2244 3904 1680 1413 581 176 674 Wait 3791 | 15 19 751 267 149 1633 252 412 177 3 113 Move 11305 | 42 509 2957 681 2054 2046 1155 909 328 141 483 Hop . | . . . . . . . . . . . Pick Up 203 | 6 12 6 6 16 81 33 14 10 11 8 Fast Attach 26 | 2 . 1 . . 6 8 . 5 . 4 Attach 70 | 7 3 . 2 6 20 14 12 3 1 2 Detach 22 | 2 2 . . 6 3 5 . 3 . 1 Swap 55 | . 3 1 1 3 13 8 2 12 4 8 Drop 115 | 1 5 6 4 9 22 20 4 17 11 16 Fire 490 | . 28 51 24 1 80 180 56 26 5 39 Melee . | . . . . . . . . . . . Ram 2 | . . . 2 . . . . . . . Kick . | . . . . . . . . . . . Crush 5 | . . . . . . 5 . . . . Escape Stasis 4 | . . . . . . . 4 . . . Rewire 115 | . . . 115 . . . . . . . Trap . | . . . . . . . . . . . Miscellaneous . | . . . . . . . . . . . Route ------- -11/Scrapyard -10/Materials (discovered 3 exits: *Mat / *Min / *Sub) -10/Subcaves (discovered 3 exits: *Mat x2 / *Rec) -9/Recycling (discovered 2 exits: *Fac / *Scr) -9/Scraptown (discovered 2 exits: *Fac x2) -6/Factory (discovered 2 exits: *Fac x2) -5/Factory (discovered 5 exits: *Fac / *Upp x2 / *Ext x2) -5/Extension (discovered 3 exits: *Fac x2 / *Cet) -5/Cetus (discovered 2 exits: *Fac / *Arc) -5/Archives (discovered 3 exits: *Fac / *Hub x2) -5/Hub_04(d) (discovered 2 exits: *Fac x2) History --------- Turn | Location | Event 5 | -11/Scrapyard | Identified exit to Materials 5 | -11/Scrapyard | Discovered exit to Materials (range 15) 71 | -11/Scrapyard | Entered Materials 71 | -10/Materials | Evolved 1 slot: Utility x1 215 | -10/Materials | Identified exit to Mines 215 | -10/Materials | Discovered exit to Mines (range 15) 301 | -10/Materials | Build established: Hacker-Mutant 406 | -10/Materials | Identified exit to Materials 406 | -10/Materials | Discovered exit to Materials (range 7) 571 | -10/Materials | Identified exit to Subcaves 571 | -10/Materials | Discovered exit to Subcaves (range 6) 573 | -10/Materials | Entered Subcaves 574 | -10/Subcaves | Approached by a straggling Scientist 592 | -10/Subcaves | Shifting Twisted Machinery released Sub. Beam Cannon 613 | -10/Subcaves | Identified exit to Materials 613 | -10/Subcaves | Discovered exit to Materials (range 15) 706 | -10/Subcaves | Visited triangular shrine 710 | -10/Subcaves | Found Prototype Device 710 | -10/Subcaves | Identified V3-11A's Pendant 715 | -10/Subcaves | Befriended Subdweller 771 | -10/Subcaves | Visited Clippyterm 773 | -10/Subcaves | Learned location of Extension (-5) 773 | -10/Subcaves | Learned Research machine intel 826 | -10/Subcaves | Learned Materials trap positions 831 | -10/Subcaves | Visited 4L-MR0's lab 874 | -10/Subcaves | Found Gun Armor 962 | -10/Subcaves | Learned location of Zion (-6) 962 | -10/Subcaves | Met a Zionite searching for "candidates" 1295 | -10/Subcaves | Befriended Subdweller 1368 | -10/Subcaves | Disturbed a concealed Subdweller 1370 | -10/Subcaves | Befriended Subdweller 1436 | -10/Subcaves | Discovered exit to Materials (range 10) 1517 | -10/Subcaves | A swath of the cavern ceiling suddenly collapsed 1717 | -10/Subcaves | Shifting Twisted Machinery released Mak. System Restoration Module 1720 | -10/Subcaves | Shifting Twisted Machinery released Sub. Machine Gun 1760 | -10/Subcaves | Learned Materials interactive machine intel 1850 | -10/Subcaves | Befriended Subdweller 1850 | -10/Subcaves | Befriended Subdweller 1870 | -10/Subcaves | Befriended Subdweller 1875 | -10/Subcaves | Ambushed by Subdwellers from Twisted Machinery 1875 | -10/Subcaves | Befriended Subdweller 1875 | -10/Subcaves | Befriended Subdweller 2110 | -10/Subcaves | Befriended Subdweller 2922 | -10/Subcaves | Shifting Twisted Machinery released Hvy. Riot Gun 2932 | -10/Subcaves | A swath of the cavern ceiling suddenly collapsed 2997 | -10/Subcaves | Identified exit to Recycling 2997 | -10/Subcaves | Discovered exit to Recycling (range 14) 3203 | -10/Subcaves | Entered Recycling 3203 | -9/Recycling | Accompanied by 7 allies 4124 | -9/Recycling | Identified exit to Factory 4124 | -9/Recycling | Discovered exit to Factory (range 7) 4322 | -9/Recycling | Scanned before Scraplab entrance 4337 | -9/Recycling | Build established: Commander-Mutant 4400 | -9/Recycling | Entered Scraplab 4437 | -9/Recycling | Identified exit to Scraptown 4437 | -9/Recycling | Discovered exit to Scraptown (range 3) 4610 | -9/Recycling | Entered Scraptown 4610 | -9/Scraptown | Accompanied by 22 allies 4651 | -9/Scraptown | Heard Great Nut preacher, LISTEN AND RECITE! 4689 | -9/Scraptown | Delivered V3-11A's Pendant to T0-NE2 in exchange for information 4764 | -9/Scraptown | Visited Cave Peace 4781 | -9/Scraptown | Visited Supply Room 4805 | -9/Scraptown | Visited UFD Registry 4805 | -9/Scraptown | Registered with UFD as "Hammerbomber" 4867 | -9/Scraptown | Visited Fellowship of the Rings 4893 | -9/Scraptown | Visited Symbiants 4972 | -9/Scraptown | Visited Comm Corps 5026 | -9/Scraptown | Visited The Evicted 5367 | -9/Scraptown | Visited Cyclists 5387 | -9/Scraptown | Entered Cyclist Reading Room 5458 | -9/Scraptown | Scanned Subdweller tech in exchange for log data 5463 | -9/Scraptown | Learned Factory garrison access intel 5464 | -9/Scraptown | Learned location of Armory (-3) 5526 | -9/Scraptown | Guru changed UFD alias to "Chainunit" 5553 | -9/Scraptown | Identified exit to Factory 5553 | -9/Scraptown | Discovered exit to Factory (range 11) 5806 | -9/Scraptown | Visited LU-1G1's Boring Crew 5866 | -9/Scraptown | Visited Scrapoid Pod Storage 5890 | -9/Scraptown | Visited Science Guys 5950 | -9/Scraptown | Visited Analyses Database 5975 | -9/Scraptown | Visited DA-N13 Charitable Foundation 5988 | -9/Scraptown | Found DCF Scrap (30 items) 6058 | -9/Scraptown | Visited Research Penetration Think Tank 6086 | -9/Scraptown | Visited Scrap Suit Storage 6110 | -9/Scraptown | Visited Infowarlord's Domain 6141 | -9/Scraptown | Visited Chapter 10 6242 | -9/Scraptown | Found Active Sensor Suite 7402 | -9/Scraptown | Met Optimus 7402 | -9/Scraptown | Accepted into 0bPrime 7742 | -9/Scraptown | Discovered exit to Factory (range 5) 7802 | -9/Scraptown | Civil war broke out across Scraptown 7803 | -9/Scraptown | Entered Factory 7803 | -6/Factory | Accompanied by 20 allies 7803 | -6/Factory | Evolved 8 slots: Power x1, Propulsion x3, Utility x3, Weapon x1 7804 | -6/Factory | Loaded intel: 3 garrison access locations 7912 | -6/Factory | Garrison activated, responded to threat 7945 | -6/Factory | Lost 3 allies 8033 | -6/Factory | Lost 13 allies 8160 | -6/Factory | Lost 4 allies 8430 | -6/Factory | Build established: Hauler-Skirmisher 9325 | -6/Factory | Found Prototype Launcher 10092 | -6/Factory | Identified Scatter Rocket Array 12876 | -6/Factory | Identified exit to Factory 12876 | -6/Factory | Discovered exit to Factory (range 15) 13191 | -6/Factory | Attached Gun Armor, gained temporary slots: Weapon x2 14361 | -6/Factory | Fabricated S-27 Virus? 14426 | -6/Factory | Discovered exit to Factory (range 10) 14663 | -6/Factory | Entered another Factory area 14663 | -5/Factory | Accompanied by 1 ally 14663 | -5/Factory | Evolved 2 slots: Power x1, Propulsion x1 15754 | -5/Factory | Cargo convoy interrupted 15864 | -5/Factory | Spotted B-75 Beast 15921 | -5/Factory | Destroyed B-75 Beast 16155 | -5/Factory | Identified exit to Upper Caves 16155 | -5/Factory | Discovered exit to Upper Caves (range 13) 16214 | -5/Factory | Build established: Hacker-Skirmisher 16350 | -5/Factory | Lost 4 parts (1p1n1u1w) 16553 | -5/Factory | Identified exit to Factory 16553 | -5/Factory | Discovered exit to Factory (range 16) 16645 | -5/Factory | Found Active Sensor Suite 16702 | -5/Factory | Lost 3 parts (1p1u1w) 17053 | -5/Factory | Identified exit to Extension 17066 | -5/Factory | Build established: Scavenger-Tank 17652 | -5/Factory | Entered Extension 18008 | -5/Extension | Build established: Scavenger-Skirmisher 18026 | -5/Extension | Spotted B-75 Beast 18073 | -5/Extension | Spotted B-75 Beast 18086 | -5/Extension | Destroyed B-75 Beast 18111 | -5/Extension | Lost 3 parts (3n) 18143 | -5/Extension | Destroyed B-75 Beast 18308 | -5/Extension | Lost 3 parts (3n) 18897 | -5/Extension | Energy Cycler disabled 18897 | -5/Extension | Rescued a captive Derelict 18898 | -5/Extension | Rescued a captive Derelict 18898 | -5/Extension | Rescued a captive Derelict 18898 | -5/Extension | Rescued a captive Derelict 18899 | -5/Extension | Rescued a captive Derelict 18899 | -5/Extension | Rescued a captive Derelict 18908 | -5/Extension | Rescued a captive Derelict 18919 | -5/Extension | Rescued a captive Derelict 19082 | -5/Extension | Rescued A7 19801 | -5/Extension | Discovered exit to Factory (range 10) 19804 | -5/Extension | Identified exit to Cetus 19804 | -5/Extension | Discovered exit to Cetus (range 6) 20071 | -5/Extension | Discovered exit to Factory (range 15) 20142 | -5/Extension | Build established: Hacker-Skirmisher 20491 | -5/Extension | Build established: Scavenger-Skirmisher 20699 | -5/Extension | Entered Cetus 20699 | -5/Cetus | Accompanied by 3 allies (A7) 20704 | -5/Cetus | Acquired a Cetus Manufacturing Module code from A7 20738 | -5/Cetus | Spotted Cetus Guard 20739 | -5/Cetus | Spotted Cetus Guard 20743 | -5/Cetus | Spotted Cetus Guard 20743 | -5/Cetus | Spotted Cetus Guard 20763 | -5/Cetus | Allies destroyed Cetus Guard 20763 | -5/Cetus | Allies destroyed Cetus Guard 20767 | -5/Cetus | Allies destroyed Cetus Guard 20770 | -5/Cetus | Allies destroyed Cetus Guard 20772 | -5/Cetus | Core integrity fell below 50% 20886 | -5/Cetus | Started Cetus Manufacturing Module 20911 | -5/Cetus | Manufactured an Enhanced Grunt 20936 | -5/Cetus | Manufactured an Enhanced Grunt 20961 | -5/Cetus | Manufactured an Enhanced Grunt 20986 | -5/Cetus | Manufactured an Enhanced Grunt 21011 | -5/Cetus | Manufactured an Enhanced Grunt 21184 | -5/Cetus | Identified exit to Archives 21184 | -5/Cetus | Discovered exit to Archives (range 16) 21367 | -5/Cetus | Spotted Cetus Guard 21367 | -5/Cetus | Spotted Cetus Guard 21369 | -5/Cetus | Spotted Cetus Guard 21370 | -5/Cetus | Spotted Cetus Guard 21379 | -5/Cetus | Destroyed Cetus Guard 21390 | -5/Cetus | Destroyed Cetus Guard 21399 | -5/Cetus | Destroyed Cetus Guard 21402 | -5/Cetus | Allies destroyed Cetus Guard 21409 | -5/Cetus | Discovered exit to Factory (range 15) 21416 | -5/Cetus | Met Revision 17 21449 | -5/Cetus | Security sweep announced 21534 | -5/Cetus | Entered Archives 21534 | -5/Archives | Accompanied by 5 allies (A7) 21600 | -5/Archives | Unable to access archive contents 21606 | -5/Archives | Identified exit to Hub_04(d) 21606 | -5/Archives | Discovered exit to Hub_04(d) (range 15) 21621 | -5/Archives | Unable to access archive contents 21625 | -5/Archives | Discovered exit to Hub_04(d) (range 16) 21640 | -5/Archives | Unable to access archive contents 21644 | -5/Archives | Discovered exit to Factory (range 16) 21659 | -5/Archives | Unable to access archive contents 21839 | -5/Archives | Entered Hub_04(d) 21839 | -5/Hub_04(d) | Accompanied by 4 allies 22016 | -5/Hub_04(d) | Found Prototype Device 22065 | -5/Hub_04(d) | Discovered exit to Factory (range 16) 22308 | -5/Hub_04(d) | Lost 3 allies 22362 | -5/Hub_04(d) | Imp. System Shield fried by hacking feedback 22496 | -5/Hub_04(d) | Discovered exit to Factory (range 11) 22638 | -5/Hub_04(d) | Network Hub disabled 22645 | -5/Hub_04(d) | Spotted Lightning 22651 | -5/Hub_04(d) | Spotted Lightning 22659 | -5/Hub_04(d) | Spotted Lightning 22660 | -5/Hub_04(d) | System corruption reached 10% 22685 | -5/Hub_04(d) | Spotted Lightning 22688 | -5/Hub_04(d) | Spotted Lightning 22689 | -5/Hub_04(d) | Spotted Lightning 22739 | -5/Hub_04(d) | First assault squad dispatched 22748 | -5/Hub_04(d) | Network Hub disabled 22749 | -5/Hub_04(d) | Core integrity fell below 20% 22765 | -5/Hub_04(d) | Destroyed by Lightning with EMDS Last Messages --------------- 22748_ ALERT: Network intrusion management efficiency at 70%. 22748_ Network Hub explodes. 22748_ Emergency Access malfunctions. 22748_ Penetrated by EMDS Slug. 22752_ System corrupted: Matter fused (-10). 22752_ ALERT: Hostiles spotted, dispatching reinforcements to Terminal H002. 22753_ EMDS Slug penetrates Earth. 22756_ Penetrated by EMDS Slug. 22756_ Active Sensor Suite destroyed. 22757_ Penetrated by EMDS Slug. 22760_ EMDS Slug penetrates Wall. 22761_ Penetrated by EMDS Slug. 22761_ Railgun destroyed. 22762_ EMDS Slug penetrates Wall. 22762_ Penetrated by EMDS Slug. 22763_ Neutrino Core destroyed. 22764_ EMDS Slug penetrates Wall. 22765_ Penetrated by EMDS Slug. Map ----- +----------------------------------------------------+ | ????????????????????????????????????? | | ????????????????????????????????????? | | ????????????????????????????????????? | | ????????????????????????????????????? | | ????????????????????????????????????? | | ????????????????????????????????????? | | ????????????????????????????????????? | | ????????????????????????????????????? | | ????????????????????????????????????? | | ????????????????????????????????????? | | ????????????????????????????????????? | | ??????????????????????####??????????? | | ??????????????????????# ?##???????? | | ??????????????????????# ? T???????? | | ?????+????????????????#;;;# ?] ????? | | ????? ###????????????? # ????? | | ????????????? ; ?""?????? | | ###???# ?? ?????????#; ; ?????? | | ??????# ??? ?????#??#; ; ??????? | | ?????+ ??? ????# ?#; ;#/#######? | | "????##/###?#h#####;##; ; #? | | "????# ### ; ; #? | | "????# / ; ; ; ! #? | | ????# ###h! ; ; #? | | "????# #?# h ; ; #? | | """" # #?# i h ; @; #? | | """" # #?# " h ; ; #? | | """ # #?# " i ; ; #? | | ?# #?# ; ; #? | | % ! ??# #;;;;;;#;;;;;% ;;;;;;####? | | "#""##" #; ;;;;;;;;;;;;; #?? | | ! """#"###" ;%= ; ! ; #? | | ! "= ; ; # | | < ; ; ### | | """"""""" " ; ; #?? | | #"% = "" ; ; #?? | | #"=![[ "" ; ; #?? | | #%!![[[ ! "#= ; ; #?? | | #"*![! "" ";; ; ##?? | | %##""%""""""""" " " ??? | | # " " " "????? | | # " " #?"""""""""???????? | | " " " #??? ?????????? | | "% " " #?????????????????? | | "=!" " #?????????????????? | | %[" #?????????????? | | * " " ###??????????????? | | """"" " ##????????????????? | | "" " #????????????????? | | "" " # #???????????????? | +----------------------------------------------------+ Best States ------------- Heat Dissipation 71 Energy Generation 57 Energy Capacity 805 Matter Stores 300 Matter Capacity 300 Sight Range 16 Robot Scan Range 20 Terrain Scan Range 16 Terrain Scan Density 210 Additional Mass Support 6 Armor Coverage 225 Resistance: KI 35 Resistance: TH 35 Resistance: EX 35 Resistance: EM 35 Resistance: I 35 Resistance: S 35 Resistance: P 35 Core Shielding 30 Utility Shielding 66 Evasion (%) 70 Recoil Reduction 6 Offensive Hacking 20 Defensive Hacking 12 Authchip Count 3 Item Schematics ----------------- None Robot Schematics ------------------ S-27 Virus | -6/Factory | Hacked Fabricated ------------ S-27 Virus | x4 | -6/Factory Repaired ---------- Nothing Studied --------- Adv. Treads | -6/Factory | Hacked Med. Treads | -6/Factory | Hacked Imp. Treads | -6/Factory | Hacked Imp. Medium Treads | -6/Factory | Hacked Arc Projector | -6/Factory | Hacked Adv. Assault Cannon | -6/Factory | Hacked Fission Core | -6/Factory | Hacked Gauss Rifle | -6/Factory | Hacked Alien Tech Used ----------------- None Achievements -------------- Preemptive Strike Significant Disruption Challenges ------------ None Game ------ Seed GaussDisintegrationWartreads Manual? 0 Play Time 02:16:26 Cumulative 83.7 hours Start 2025.11.12 @ 17:11:41 End 2025.11.13 @ 10:17:20 Sessions 3 Manual Loads 0 Difficulty Explorer Special Mode None Game No. 80 Rogue 0 Adventurer 0 Explorer 80 Win Type - Total 0 Types 0/0/0/0/0/0/0/0/0/0 Lore% 54 Gallery% 55 Achievement% 43 Wizard Run 0 Options --------- Layout 1 ASCII 0 Keyboard 0 Movement Mouse Keybinds 0 Fullscreen 1 Font 24/Smallcaps Map View 50x35 Zoom Use 0% Tactical HUD 1 Map Filters NONE Filters NONE Steam 1 RUN: ffa815cf-b21c-4301-abdb-8f69f2353cf3